[Event "Early-Titled-Tuesday-Blitz-February-13-2024"]
[Site "Chess.com"]
[Date "2024.02.13"]
[Round "2"]
[White "Abund"]
[Black "jeetjain"]
[Result "1/2-1/2"]
[WhiteElo "2759"]
[BlackElo "2522"]
[TimeControl "180+1"]
[EndTime "8:24:31 PST"]
[Termination "Game drawn by repetition"]

1. e4 {[%clk 0:03:00.7]} 1... c6 {[%clk 0:02:48.4]} 2. d4 {[%clk 0:03:00.7]}
2... d5 {[%clk 0:02:47.9]} 3. exd5 {[%clk 0:02:57.3]} 3... cxd5 {[%clk 0:02:48]}
4. Bd3 {[%clk 0:02:57.8]} 4... Nf6 {[%clk 0:02:48.2]} 5. h3 {[%clk 0:02:58.1]}
5... Nc6 {[%clk 0:02:48.3]} 6. c3 {[%clk 0:02:58.5]} 6... g6 {[%clk 0:02:45.6]}
7. Nf3 {[%clk 0:02:58.7]} 7... Bg7 {[%clk 0:02:45.8]} 8. O-O {[%clk 0:02:59.1]}
8... O-O {[%clk 0:02:46]} 9. Re1 {[%clk 0:02:59.7]} 9... Bf5 {[%clk 0:02:45.5]}
10. Bf1 {[%clk 0:03:00.5]} 10... Qc7 {[%clk 0:02:40]} 11. Nbd2 {[%clk
0:02:59.5]} 11... Ne4 {[%clk 0:02:37.1]} 12. Nxe4 {[%clk 0:02:59.3]} 12... Bxe4
{[%clk 0:02:36.5]} 13. Nd2 {[%clk 0:02:59.8]} 13... Bf5 {[%clk 0:02:36.2]} 14.
Nb3 {[%clk 0:03:00.6]} 14... e5 {[%clk 0:02:33.7]} 15. dxe5 {[%clk 0:02:55.8]}
15... Nxe5 {[%clk 0:02:32.9]} 16. Qxd5 {[%clk 0:02:51.4]} 16... Rad8 {[%clk
0:02:31.9]} 17. Qc5 {[%clk 0:02:50.9]} 17... Qb8 {[%clk 0:02:28.4]} 18. Bg5
{[%clk 0:02:38.1]} 18... Rc8 {[%clk 0:02:18]} 19. Qe3 {[%clk 0:02:18.4]} 19...
Nc4 {[%clk 0:02:14.2]} 20. Bxc4 {[%clk 0:02:09.3]} 20... Rxc4 {[%clk 0:02:14.9]}
21. Rad1 {[%clk 0:02:08.7]} 21... b6 {[%clk 0:02:02.9]} 22. Bh6 {[%clk 0:02:06]}
22... a5 {[%clk 0:01:56.4]} 23. Bxg7 {[%clk 0:01:56.6]} 23... Kxg7 {[%clk
0:01:57.3]} 24. Nd4 {[%clk 0:01:57.3]} 24... Bd7 {[%clk 0:01:44.9]} 25. Nf3
{[%clk 0:01:49.6]} 25... Bf5 {[%clk 0:01:38]} 26. Nd4 {[%clk 0:01:46.8]} 26...
Bd7 {[%clk 0:01:36.4]} 27. Qe7 {[%clk 0:01:40.3]} 27... Rc7 {[%clk 0:01:29.6]}
28. Qe5+ {[%clk 0:01:35.9]} 28... Kg8 {[%clk 0:01:29.8]} 29. Qf6 {[%clk
0:01:35.6]} 29... Re8 {[%clk 0:01:22]} 30. Rxe8+ {[%clk 0:01:19.4]} 30... Bxe8
{[%clk 0:01:22.9]} 31. Re1 {[%clk 0:01:19.3]} 31... b5 {[%clk 0:01:17.5]} 32.
Qd6 {[%clk 0:01:18.8]} 32... Rc8 {[%clk 0:01:13.5]} 33. Qd5 {[%clk 0:01:14.1]}
33... Qb6 {[%clk 0:00:52.6]} 34. Re7 {[%clk 0:01:05.7]} 34... Qf6 {[%clk
0:00:49.5]} 35. Re3 {[%clk 0:01:00.5]} 35... a4 {[%clk 0:00:45.7]} 36. Nxb5
{[%clk 0:00:43.1]} 36... Bc6 {[%clk 0:00:28.6]} 37. Qe5 {[%clk 0:00:38.1]} 37...
Qxe5 {[%clk 0:00:22.8]} 38. Rxe5 {[%clk 0:00:38.2]} 38... Bxb5 {[%clk
0:00:23.6]} 39. Rxb5 {[%clk 0:00:38.4]} 39... a3 {[%clk 0:00:24.4]} 40. bxa3
{[%clk 0:00:28.8]} 40... Rxc3 {[%clk 0:00:24.4]} 41. Rb1 {[%clk 0:00:22.7]}
41... Rxa3 {[%clk 0:00:24.1]} 42. Ra1 {[%clk 0:00:23.4]} 42... h5 {[%clk
0:00:22.3]} 43. g3 {[%clk 0:00:21.5]} 43... Kg7 {[%clk 0:00:22.4]} 44. h4 {[%clk
0:00:21.4]} 44... Kf6 {[%clk 0:00:22.6]} 45. Kf1 {[%clk 0:00:21.9]} 45... Kf5
{[%clk 0:00:22.8]} 46. Ke2 {[%clk 0:00:22.6]} 46... Kg4 {[%clk 0:00:21.3]} 47.
Kf1 {[%clk 0:00:12.1]} 47... Kf3 {[%clk 0:00:18.8]} 48. Kg1 {[%clk 0:00:12.5]}
48... f5 {[%clk 0:00:18.3]} 49. Rb1 {[%clk 0:00:06.5]} 49... Rxa2 {[%clk
0:00:14.3]} 50. Rb3+ {[%clk 0:00:04.6]} 50... Kg4 {[%clk 0:00:10.3]} 51. Kg2
{[%clk 0:00:05.1]} 51... f4 {[%clk 0:00:09.7]} 52. Rb4 {[%clk 0:00:05]} 52...
Kf5 {[%clk 0:00:09.4]} 53. Rxf4+ {[%clk 0:00:05]} 53... Ke6 {[%clk 0:00:09.6]}
54. Rf8 {[%clk 0:00:05.4]} 54... Rb2 {[%clk 0:00:08.4]} 55. Rf3 {[%clk
0:00:05.7]} 55... Ra2 {[%clk 0:00:08.6]} 56. Rf4 {[%clk 0:00:06.2]} 56... Rb2
{[%clk 0:00:08.8]} 57. Kf3 {[%clk 0:00:06.9]} 57... Rb3+ {[%clk 0:00:08.5]} 58.
Ke2 {[%clk 0:00:07.2]} 58... Rb2+ {[%clk 0:00:08.9]} 59. Kd3 {[%clk 0:00:07.7]}
59... Ra2 {[%clk 0:00:09.4]} 60. Kc3 {[%clk 0:00:07.9]} 60... Ra3+ {[%clk
0:00:09.6]} 61. Kb4 {[%clk 0:00:08.2]} 61... Ra2 {[%clk 0:00:10]} 62. Kc5 {[%clk
0:00:08.7]} 62... Rc2+ {[%clk 0:00:10.1]} 63. Kb6 {[%clk 0:00:09.3]} 63... Rb2+
{[%clk 0:00:10.3]} 64. Kc7 {[%clk 0:00:09.5]} 64... Ke7 {[%clk 0:00:09.1]} 65.
Re4+ {[%clk 0:00:09.4]} 65... Kf6 {[%clk 0:00:09]} 66. Rf4+ {[%clk 0:00:09.9]}
66... Kg7 {[%clk 0:00:09.1]} 67. Kd6 {[%clk 0:00:10.6]} 67... Rb6+ {[%clk
0:00:09.2]} 68. Ke5 {[%clk 0:00:11]} 68... Rb5+ {[%clk 0:00:09.6]} 69. Ke4
{[%clk 0:00:11.8]} 69... Rb4+ {[%clk 0:00:10.1]} 70. Kf3 {[%clk 0:00:12.6]}
70... Rb3+ {[%clk 0:00:10.6]} 71. Kg2 {[%clk 0:00:13.2]} 71... Rb2 {[%clk
0:00:11.1]} 72. Rf3 {[%clk 0:00:14]} 72... Ra2 {[%clk 0:00:11.1]} 73. Rb3 {[%clk
0:00:14.4]} 73... Rc2 {[%clk 0:00:11.1]} 74. Ra3 {[%clk 0:00:14.5]} 74... Rb2
{[%clk 0:00:11.3]} 75. Ra6 {[%clk 0:00:14.6]} 75... Rc2 {[%clk 0:00:11]} 76. Rb6
{[%clk 0:00:14.5]} 76... Ra2 {[%clk 0:00:11.1]} 77. Rb3 {[%clk 0:00:15]} 77...
Rc2 {[%clk 0:00:11.3]} 78. Rf3 {[%clk 0:00:15.5]} 78... Ra2 {[%clk 0:00:11.5]}
79. Rf4 {[%clk 0:00:16.2]} 79... Rb2 {[%clk 0:00:11.9]} 80. Kh3 {[%clk
0:00:16.6]} 80... Ra2 {[%clk 0:00:11.9]} 81. g4 {[%clk 0:00:13]} 81... hxg4+
{[%clk 0:00:11.3]} 82. Kxg4 {[%clk 0:00:13.9]} 82... Rb2 {[%clk 0:00:11.2]} 83.
Kg5 {[%clk 0:00:13.2]} 83... Rb5+ {[%clk 0:00:11.5]} 84. Kg4 {[%clk 0:00:13.6]}
84... Ra5 {[%clk 0:00:11.9]} 85. Rc4 {[%clk 0:00:13.2]} 85... Kh6 {[%clk
0:00:11.8]} 86. Rc8 {[%clk 0:00:12.9]} 86... Rb5 {[%clk 0:00:11.4]} 87. f4
{[%clk 0:00:12.5]} 87... Ra5 {[%clk 0:00:11.6]} 88. Rb8 {[%clk 0:00:13.1]} 88...
Rc5 {[%clk 0:00:11.4]} 89. Rb6 {[%clk 0:00:13.6]} 89... Ra5 {[%clk 0:00:11.1]}
90. Rf6 {[%clk 0:00:13.7]} 90... Rb5 {[%clk 0:00:11.3]} 91. Ra6 {[%clk
0:00:13.6]} 91... Rc5 {[%clk 0:00:11.5]} 92. Ra1 {[%clk 0:00:13.5]} 92... Rb5
{[%clk 0:00:11.8]} 93. Re1 {[%clk 0:00:14.3]} 93... Ra5 {[%clk 0:00:12.1]} 94.
Rb1 {[%clk 0:00:15]} 94... Rc5 {[%clk 0:00:12.3]} 95. Rb8 {[%clk 0:00:15.7]}
95... Ra5 {[%clk 0:00:12.6]} 96. Rh8+ {[%clk 0:00:16.3]} 96... Kg7 {[%clk
0:00:13]} 97. Re8 {[%clk 0:00:17]} 97... Kh6 {[%clk 0:00:13.2]} 98. Re5 {[%clk
0:00:17.8]} 98... Ra1 {[%clk 0:00:12.9]} 99. Re3 {[%clk 0:00:17]} 99... Ra5
{[%clk 0:00:12.8]} 100. Re1 {[%clk 0:00:15.7]} 100... Rb5 {[%clk 0:00:12.8]}
101. Re5 {[%clk 0:00:16.3]} 101... Rb1 {[%clk 0:00:12.8]} 102. Re6 {[%clk
0:00:13]} 102... Rb5 {[%clk 0:00:13]} 103. Rc6 {[%clk 0:00:12.9]} 103... Ra5
{[%clk 0:00:13.3]} 104. Rb6 {[%clk 0:00:11.2]} 104... Rc5 {[%clk 0:00:13.4]}
105. Rb2 {[%clk 0:00:10.3]} 105... Ra5 {[%clk 0:00:13.7]} 106. Rg2 {[%clk
0:00:09.2]} 106... Rb5 {[%clk 0:00:13.8]} 107. Kf3 {[%clk 0:00:09.7]} 107... Rh5
{[%clk 0:00:13.1]} 108. Rg4 {[%clk 0:00:08.4]} 108... Ra5 {[%clk 0:00:13.3]}
109. Kg3 {[%clk 0:00:07.5]} 109... Ra3+ {[%clk 0:00:13.4]} 110. Kf2 {[%clk
0:00:07.9]} 110... Ra2+ {[%clk 0:00:14.3]} 111. Ke3 {[%clk 0:00:08.4]} 111...
Ra3+ {[%clk 0:00:13.8]} 112. Ke4 {[%clk 0:00:08.9]} 112... Ra4+ {[%clk
0:00:14.3]} 113. Kf3 {[%clk 0:00:09.3]} 113... Ra3+ {[%clk 0:00:14.5]} 114. Kg2
{[%clk 0:00:10.1]} 114... Ra2+ {[%clk 0:00:14.9]} 115. Kh3 {[%clk 0:00:10.8]}
115... Ra3+ {[%clk 0:00:15.3]} 116. Rg3 {[%clk 0:00:11.5]} 116... Ra5 {[%clk
0:00:15.6]} 117. Rg5 {[%clk 0:00:09.9]} 117... Ra3+ {[%clk 0:00:15.9]} 118. Kh2
{[%clk 0:00:10.1]} 118... Ra2+ {[%clk 0:00:15.8]} 119. Rg2 {[%clk 0:00:10.5]}
119... Ra5 {[%clk 0:00:15.7]} 120. Kg3 {[%clk 0:00:10.8]} 120... Ra3+ {[%clk
0:00:15.9]} 121. Kg4 {[%clk 0:00:10.8]} 121... Ra5 {[%clk 0:00:16.3]} 122. Rh2
{[%clk 0:00:11.3]} 122... Rb5 {[%clk 0:00:16.4]} 123. Rh1 {[%clk 0:00:11.7]}
123... Ra5 {[%clk 0:00:16.7]} 124. Rf1 {[%clk 0:00:12.1]} 124... Rb5 {[%clk
0:00:16.7]} 125. Rf3 {[%clk 0:00:12.5]} 125... Ra5 {[%clk 0:00:17]} 126. Kh3
{[%clk 0:00:12.9]} 126... Rb5 {[%clk 0:00:17.2]} 127. Rg3 {[%clk 0:00:13.4]}
127... Ra5 {[%clk 0:00:17.4]} 128. Rg5 {[%clk 0:00:13.8]} 128... Ra3+ {[%clk
0:00:17.7]} 129. Kg4 {[%clk 0:00:14.4]} 129... Ra1 {[%clk 0:00:17.7]} 130. Kf3
{[%clk 0:00:10.2]} 130... Ra3+ {[%clk 0:00:17.4]} 131. Kg2 {[%clk 0:00:10.3]}
131... Ra2+ {[%clk 0:00:17.8]} 132. Kh3 {[%clk 0:00:10]} 132... Ra3+ {[%clk
0:00:18.1]} 1/2-1/2

[Event "Early-Titled-Tuesday-Blitz-February-13-2024"]
[Site "Chess.com"]
[Date "2024.02.13"]
[Round "3"]
[White "Mops_2004"]
[Black "KamlaPasand"]
[Result "1-0"]
[WhiteElo "2853"]
[BlackElo "2583"]
[TimeControl "180+1"]
[EndTime "8:27:36 PST"]
[Termination "Mops_2004 won by resignation"]

1. g3 {[%clk 0:03:00.9]} 1... g6 {[%clk 0:02:58.2]} 2. Bg2 {[%clk 0:02:59.6]}
2... Bg7 {[%clk 0:02:59.1]} 3. d4 {[%clk 0:03:00]} 3... d5 {[%clk 0:02:58]} 4.
Nf3 {[%clk 0:02:59.9]} 4... Nf6 {[%clk 0:02:57.1]} 5. O-O {[%clk 0:02:59]} 5...
O-O {[%clk 0:02:55.7]} 6. c4 {[%clk 0:02:59.3]} 6... dxc4 {[%clk 0:02:53.2]} 7.
Na3 {[%clk 0:02:59.2]} 7... Be6 {[%clk 0:02:51.1]} 8. Ng5 {[%clk 0:02:51.9]}
8... Bd5 {[%clk 0:02:50.4]} 9. e4 {[%clk 0:02:52.1]} 9... Bc6 {[%clk 0:02:41.7]}
10. d5 {[%clk 0:02:47.9]} 10... Bd7 {[%clk 0:02:41.1]} 11. e5 {[%clk 0:02:39.8]}
11... Ne8 {[%clk 0:02:38.7]} 12. e6 {[%clk 0:02:35]} 12... fxe6 {[%clk
0:02:35.5]} 13. dxe6 {[%clk 0:02:35.1]} 13... c3 {[%clk 0:02:24.1]} 14. bxc3
{[%clk 0:02:14]} 14... Bxc3 {[%clk 0:02:21.6]} 15. Rb1 {[%clk 0:01:50.8]} 15...
Nd6 {[%clk 0:02:18]} 16. exd7 {[%clk 0:01:49.8]} 16... Qxd7 {[%clk 0:02:17.9]}
17. Qb3+ {[%clk 0:01:49.2]} 1-0

[Event "Early-Titled-Tuesday-Blitz-February-13-2024"]
[Site "Chess.com"]
[Date "2024.02.13"]
[Round "3"]
[White "bipe137"]
[Black "inagreV"]
[Result "0-1"]
[WhiteElo "2578"]
[BlackElo "2350"]
[TimeControl "180+1"]
[EndTime "8:28:19 PST"]
[Termination "inagreV won by checkmate"]

1. d4 {[%clk 0:03:00.9]} 1... Nf6 {[%clk 0:02:59.5]} 2. c4 {[%clk 0:02:57.9]}
2... g6 {[%clk 0:02:59.4]} 3. Nc3 {[%clk 0:02:57.1]} 3... Bg7 {[%clk 0:02:59.6]}
4. e4 {[%clk 0:02:51.8]} 4... d6 {[%clk 0:02:59.6]} 5. Nf3 {[%clk 0:02:49.5]}
5... O-O {[%clk 0:02:57.6]} 6. Be2 {[%clk 0:02:49]} 6... e5 {[%clk 0:02:56.7]}
7. O-O {[%clk 0:02:48.5]} 7... Bg4 {[%clk 0:02:56.5]} 8. d5 {[%clk 0:02:47.6]}
8... a5 {[%clk 0:02:56.1]} 9. Ne1 {[%clk 0:02:46.1]} 9... Bd7 {[%clk 0:02:55.7]}
10. Nd3 {[%clk 0:02:45.4]} 10... Na6 {[%clk 0:02:55.6]} 11. Be3 {[%clk 0:02:44]}
11... b6 {[%clk 0:02:55.2]} 12. f3 {[%clk 0:02:43.5]} 12... Nh5 {[%clk 0:02:53]}
13. g4 {[%clk 0:02:36.7]} 13... Nf4 {[%clk 0:02:32.4]} 14. Nxf4 {[%clk
0:02:36.7]} 14... exf4 {[%clk 0:02:33]} 15. Bxf4 {[%clk 0:02:37.3]} 15... f5
{[%clk 0:02:24.2]} 16. gxf5 {[%clk 0:02:34.8]} 16... gxf5 {[%clk 0:02:22.3]} 17.
Be3 {[%clk 0:02:35.4]} 17... Qh4 {[%clk 0:02:15.6]} 18. Kh1 {[%clk 0:02:32.4]}
18... Rae8 {[%clk 0:02:13.8]} 19. Bd4 {[%clk 0:02:27.9]} 19... fxe4 {[%clk
0:01:33.5]} 20. Rg1 {[%clk 0:02:20.2]} 20... Rf7 {[%clk 0:01:33.6]} 21. Bxg7
{[%clk 0:02:16.5]} 21... Rxg7 {[%clk 0:01:33.8]} 22. Qd4 {[%clk 0:02:15.2]}
22... Re5 {[%clk 0:01:25]} 23. Nxe4 {[%clk 0:02:13.8]} 23... Qxh2+ {[%clk
0:01:18]} 24. Kxh2 {[%clk 0:02:12.2]} 24... Rh5# {[%clk 0:01:18.9]} 0-1

[Event "Early-Titled-Tuesday-Blitz-February-13-2024"]
[Site "Chess.com"]
[Date "2024.02.13"]
[Round "3"]
[White "PositionalPanther"]
[Black "GMG"]
[Result "0-1"]
[WhiteElo "2416"]
[BlackElo "2698"]
[TimeControl "180+1"]
[EndTime "8:28:35 PST"]
[Termination "GMG won by checkmate"]

1. Nf3 {[%clk 0:02:58.9]} 1... f5 {[%clk 0:02:58.8]} 2. c4 {[%clk 0:02:51.9]}
2... Nf6 {[%clk 0:02:58.4]} 3. Nc3 {[%clk 0:02:52.3]} 3... d6 {[%clk 0:02:57.1]}
4. d4 {[%clk 0:02:51.9]} 4... g6 {[%clk 0:02:57.2]} 5. g3 {[%clk 0:02:52.3]}
5... Bg7 {[%clk 0:02:57.5]} 6. Bg2 {[%clk 0:02:52.9]} 6... O-O {[%clk
0:02:58.1]} 7. O-O {[%clk 0:02:53.1]} 7... c6 {[%clk 0:02:58.8]} 8. Nd2 {[%clk
0:02:49.9]} 8... e5 {[%clk 0:02:57.7]} 9. dxe5 {[%clk 0:02:48.5]} 9... dxe5
{[%clk 0:02:58.6]} 10. e4 {[%clk 0:02:49.1]} 10... f4 {[%clk 0:02:37.2]} 11. Nb3
{[%clk 0:02:39.3]} 11... g5 {[%clk 0:02:34.9]} 12. Qxd8 {[%clk 0:02:38.2]} 12...
Rxd8 {[%clk 0:02:35.8]} 13. h4 {[%clk 0:02:35.6]} 13... h6 {[%clk 0:02:35.6]}
14. hxg5 {[%clk 0:02:34]} 14... hxg5 {[%clk 0:02:36.5]} 15. gxf4 {[%clk
0:02:34.2]} 15... exf4 {[%clk 0:02:26.8]} 16. Rd1 {[%clk 0:02:31.4]} 16... Rxd1+
{[%clk 0:02:25.5]} 17. Nxd1 {[%clk 0:02:32.3]} 17... Nbd7 {[%clk 0:02:26]} 18.
f3 {[%clk 0:02:31.9]} 18... Ne5 {[%clk 0:02:24.4]} 19. Nd2 {[%clk 0:02:27.4]}
19... Be6 {[%clk 0:02:21.5]} 20. b3 {[%clk 0:02:26.8]} 20... Nd3 {[%clk
0:02:21.6]} 21. Bb2 {[%clk 0:02:14.1]} 21... Nxb2 {[%clk 0:02:08.6]} 22. Nxb2
{[%clk 0:02:15]} 22... Nd7 {[%clk 0:02:04.9]} 23. Rb1 {[%clk 0:02:04.3]} 23...
Bc3 {[%clk 0:02:04.8]} 24. Nf1 {[%clk 0:02:02]} 24... Bd4+ {[%clk 0:02:04.9]}
25. Kh1 {[%clk 0:01:52]} 25... Kf7 {[%clk 0:01:57.9]} 26. Nd3 {[%clk 0:01:50.7]}
26... Rh8+ {[%clk 0:01:57.2]} 27. Nh2 {[%clk 0:01:50.5]} 27... Nf6 {[%clk
0:01:57.5]} 28. Rd1 {[%clk 0:01:42.9]} 28... Nh5 {[%clk 0:01:54.7]} 29. Bf1
{[%clk 0:01:36.7]} 29... Ng3+ {[%clk 0:01:53.6]} 30. Kg2 {[%clk 0:01:37.1]}
30... Bh3# {[%clk 0:01:53.6]} 0-1

[Event "Early-Titled-Tuesday-Blitz-February-13-2024"]
[Site "Chess.com"]
[Date "2024.02.13"]
[Round "3"]
[White "Barmen_EV"]
[Black "manitodeplomo"]
[Result "1-0"]
[WhiteElo "2502"]
[BlackElo "2666"]
[TimeControl "180+1"]
[EndTime "8:28:44 PST"]
[Termination "Barmen_EV won by resignation"]

1. e4 {[%clk 0:03:00.9]} 1... c5 {[%clk 0:02:59.2]} 2. c3 {[%clk 0:03:01.1]}
2... e6 {[%clk 0:02:57.1]} 3. d4 {[%clk 0:03:01.7]} 3... d5 {[%clk 0:02:57.7]}
4. Nd2 {[%clk 0:03:02.3]} 4... cxd4 {[%clk 0:02:53.9]} 5. cxd4 {[%clk
0:03:03.2]} 5... Nc6 {[%clk 0:02:53.2]} 6. Ngf3 {[%clk 0:03:03.4]} 6... dxe4
{[%clk 0:02:52.7]} 7. Nxe4 {[%clk 0:03:04.3]} 7... Bb4+ {[%clk 0:02:50.8]} 8.
Nc3 {[%clk 0:03:04.9]} 8... Nf6 {[%clk 0:02:50.8]} 9. Bd3 {[%clk 0:03:05.4]}
9... O-O {[%clk 0:02:49.2]} 10. O-O {[%clk 0:03:06]} 10... Be7 {[%clk
0:02:46.5]} 11. Re1 {[%clk 0:03:05.4]} 11... b6 {[%clk 0:02:43.4]} 12. Bb1
{[%clk 0:03:05.3]} 12... Bb7 {[%clk 0:02:43.2]} 13. a3 {[%clk 0:03:04.6]} 13...
Qd6 {[%clk 0:02:38.8]} 14. Qd3 {[%clk 0:03:04.6]} 14... Rad8 {[%clk 0:02:36]}
15. Ne4 {[%clk 0:02:39.1]} 15... Nxe4 {[%clk 0:02:33.1]} 16. Qxe4 {[%clk
0:02:40]} 16... g6 {[%clk 0:02:24.2]} 17. Bh6 {[%clk 0:02:32.5]} 17... Rfe8
{[%clk 0:02:23.6]} 18. Ba2 {[%clk 0:02:32.2]} 18... Bf6 {[%clk 0:02:16]} 19.
Rad1 {[%clk 0:02:29.5]} 19... Ba8 {[%clk 0:02:03.4]} 20. d5 {[%clk 0:02:22.9]}
20... Ne7 {[%clk 0:01:54.3]} 21. dxe6 {[%clk 0:02:14.7]} 21... Qxd1 {[%clk
0:01:41.5]} 22. exf7+ {[%clk 0:02:14.3]} 22... Kh8 {[%clk 0:01:40.8]} 23.
fxe8=Q+ {[%clk 0:01:47.8]} 23... Rxe8 {[%clk 0:01:41.7]} 24. Qe6 {[%clk
0:01:47.6]} 1-0

[Event "Early-Titled-Tuesday-Blitz-February-13-2024"]
[Site "Chess.com"]
[Date "2024.02.13"]
[Round "3"]
[White "NM_Antelacus"]
[Black "Payyappat"]
[Result "0-1"]
[WhiteElo "2247"]
[BlackElo "2556"]
[TimeControl "180+1"]
[EndTime "8:28:54 PST"]
[Termination "Payyappat won by checkmate"]

1. e4 {[%clk 0:03:00.9]} 1... c6 {[%clk 0:02:58.3]} 2. d4 {[%clk 0:03:00.2]}
2... d5 {[%clk 0:02:57.4]} 3. e5 {[%clk 0:03:00.9]} 3... Bf5 {[%clk 0:02:56.7]}
4. Nf3 {[%clk 0:03:01.6]} 4... e6 {[%clk 0:02:56.9]} 5. Be2 {[%clk 0:03:01.7]}
5... Ne7 {[%clk 0:02:56.9]} 6. O-O {[%clk 0:03:01.1]} 6... Ng6 {[%clk
0:02:57.2]} 7. Be3 {[%clk 0:02:56.2]} 7... Nd7 {[%clk 0:02:52.8]} 8. c3 {[%clk
0:02:55.1]} 8... f6 {[%clk 0:02:51.9]} 9. exf6 {[%clk 0:02:53.8]} 9... Nxf6
{[%clk 0:02:52.8]} 10. Nbd2 {[%clk 0:02:50.8]} 10... Bd6 {[%clk 0:02:51.7]} 11.
Re1 {[%clk 0:02:40.6]} 11... O-O {[%clk 0:02:51]} 12. Nf1 {[%clk 0:02:39.6]}
12... Qc7 {[%clk 0:02:42.9]} 13. Ng3 {[%clk 0:02:38.6]} 13... Ng4 {[%clk
0:02:38.6]} 14. Bd2 {[%clk 0:02:22]} 14... Be4 {[%clk 0:02:31.6]} 15. Rf1 {[%clk
0:02:13.1]} 15... Rf6 {[%clk 0:01:40.6]} 16. Ng5 {[%clk 0:02:09.8]} 16... Nxh2
{[%clk 0:01:28.9]} 17. N5xe4 {[%clk 0:01:59]} 17... dxe4 {[%clk 0:01:27]} 18.
Kxh2 {[%clk 0:01:55.3]} 18... Rxf2 {[%clk 0:01:25.8]} 19. Rxf2 {[%clk
0:01:53.3]} 19... Bxg3+ {[%clk 0:01:24.9]} 20. Kg1 {[%clk 0:01:53.2]} 20...
Bxf2+ {[%clk 0:01:25.1]} 21. Kxf2 {[%clk 0:01:52.5]} 21... Qh2 {[%clk
0:01:22.6]} 22. Bg4 {[%clk 0:01:46.8]} 22... Rf8+ {[%clk 0:01:20.5]} 23. Ke3
{[%clk 0:01:39.6]} 23... Qf4+ {[%clk 0:01:19.4]} 24. Ke2 {[%clk 0:01:38.9]}
24... Qf2# {[%clk 0:01:20.3]} 0-1

[Event "Early-Titled-Tuesday-Blitz-February-13-2024"]
[Site "Chess.com"]
[Date "2024.02.13"]
[Round "3"]
[White "ChessFanNM"]
[Black "FLYD"]
[Result "1-0"]
[WhiteElo "2323"]
[BlackElo "1955"]
[TimeControl "180+1"]
[EndTime "8:29:00 PST"]
[Termination "ChessFanNM won by resignation"]

1. e4 {[%clk 0:02:59.3]} 1... c6 {[%clk 0:02:48.6]} 2. d4 {[%clk 0:02:53.6]}
2... d5 {[%clk 0:02:49.5]} 3. exd5 {[%clk 0:02:53.6]} 3... cxd5 {[%clk
0:02:50.4]} 4. Nf3 {[%clk 0:02:54]} 4... Nc6 {[%clk 0:02:48.9]} 5. c4 {[%clk
0:02:53]} 5... Nf6 {[%clk 0:02:49.2]} 6. Nc3 {[%clk 0:02:47.3]} 6... Bg4 {[%clk
0:02:48.5]} 7. cxd5 {[%clk 0:02:45.2]} 7... Nxd5 {[%clk 0:02:48.1]} 8. Qb3
{[%clk 0:02:41]} 8... Bxf3 {[%clk 0:02:47.9]} 9. gxf3 {[%clk 0:02:39.1]} 9... e6
{[%clk 0:02:47.8]} 10. Qxb7 {[%clk 0:02:39.1]} 10... Nxd4 {[%clk 0:02:46.5]} 11.
Bb5+ {[%clk 0:02:38.4]} 11... Nxb5 {[%clk 0:02:46.6]} 12. Qc6+ {[%clk
0:02:37.4]} 12... Ke7 {[%clk 0:02:46.8]} 13. Qxb5 {[%clk 0:02:37.2]} 13... Nxc3
{[%clk 0:02:46.6]} 14. bxc3 {[%clk 0:02:32]} 14... Qd5 {[%clk 0:02:46.6]} 15.
Rb1 {[%clk 0:02:11.8]} 15... Qxb5 {[%clk 0:02:39.3]} 16. Rxb5 {[%clk 0:02:11.3]}
16... Kf6 {[%clk 0:02:28.2]} 17. Bg5+ {[%clk 0:02:04.1]} 17... Kg6 {[%clk
0:02:26.8]} 18. Rg1 {[%clk 0:02:03.8]} 18... f6 {[%clk 0:02:20.5]} 19. Be3+
{[%clk 0:01:53.2]} 19... Kf7 {[%clk 0:02:17.9]} 20. Rb7+ {[%clk 0:01:52.8]}
20... Ke8 {[%clk 0:02:13.6]} 21. Bxa7 {[%clk 0:01:50.2]} 21... g6 {[%clk
0:02:07.7]} 22. Ke2 {[%clk 0:01:42.3]} 22... Bd6 {[%clk 0:02:01.9]} 23. Rd1
{[%clk 0:01:36.6]} 23... Rd8 {[%clk 0:01:43.4]} 24. Bb6 {[%clk 0:01:29.5]} 1-0

[Event "Early-Titled-Tuesday-Blitz-February-13-2024"]
[Site "Chess.com"]
[Date "2024.02.13"]
[Round "3"]
[White "Alblooshi_Hamad"]
[Black "Kotofeyca"]
[Result "1/2-1/2"]
[WhiteElo "2222"]
[BlackElo "2427"]
[TimeControl "180+1"]
[EndTime "8:29:12 PST"]
[Termination "Game drawn by repetition"]

1. d4 {[%clk 0:03:00.9]} 1... d5 {[%clk 0:02:59.9]} 2. c4 {[%clk 0:03:01]} 2...
c6 {[%clk 0:03:00.5]} 3. Nf3 {[%clk 0:03:01.1]} 3... Nf6 {[%clk 0:03:00.9]} 4.
Nc3 {[%clk 0:03:01.4]} 4... dxc4 {[%clk 0:03:01]} 5. a4 {[%clk 0:03:01.5]} 5...
Bg4 {[%clk 0:03:01.5]} 6. e3 {[%clk 0:02:59.5]} 6... e5 {[%clk 0:03:00.9]} 7.
dxe5 {[%clk 0:02:57.9]} 7... Qxd1+ {[%clk 0:03:01.8]} 8. Kxd1 {[%clk 0:02:49.8]}
8... Nfd7 {[%clk 0:03:02.7]} 9. Bxc4 {[%clk 0:02:45.9]} 9... Bxf3+ {[%clk
0:02:59.4]} 10. gxf3 {[%clk 0:02:45.2]} 10... Nxe5 {[%clk 0:02:59.4]} 11. Be2
{[%clk 0:02:45.9]} 11... a5 {[%clk 0:02:59.6]} 12. Kc2 {[%clk 0:02:44.3]} 12...
Na6 {[%clk 0:02:59.2]} 13. Bxa6 {[%clk 0:02:39.9]} 13... Rxa6 {[%clk 0:03:00.1]}
14. f4 {[%clk 0:02:38.2]} 14... Nd7 {[%clk 0:03:00.1]} 15. b3 {[%clk 0:02:24]}
15... Bb4 {[%clk 0:02:56.4]} 16. Ba3 {[%clk 0:02:19.8]} 16... Bxa3 {[%clk
0:02:47.5]} 17. Rxa3 {[%clk 0:02:19.6]} 17... Nc5 {[%clk 0:02:46.8]} 18. Raa1
{[%clk 0:02:13.8]} 18... Ke7 {[%clk 0:02:46.8]} 19. Rhd1 {[%clk 0:02:12.3]}
19... Raa8 {[%clk 0:02:44.5]} 20. Rd2 {[%clk 0:02:05.8]} 20... Rad8 {[%clk
0:02:44]} 21. Rad1 {[%clk 0:02:05.6]} 21... Rxd2+ {[%clk 0:02:43.7]} 22. Rxd2
{[%clk 0:02:06.5]} 22... h5 {[%clk 0:02:41.4]} 23. f3 {[%clk 0:02:00.3]} 23...
Rh6 {[%clk 0:02:40.9]} 24. Rg2 {[%clk 0:01:46.9]} 24... Kf8 {[%clk 0:02:38.9]}
25. Ne4 {[%clk 0:01:40.6]} 25... Nxe4 {[%clk 0:02:33.7]} 26. fxe4 {[%clk
0:01:40.9]} 26... Rd6 {[%clk 0:02:18.2]} 27. Rg5 {[%clk 0:01:36.1]} 27... Re6
{[%clk 0:01:58.3]} 28. Rxh5 {[%clk 0:01:18.4]} 28... Rxe4 {[%clk 0:01:58.3]} 29.
Kd3 {[%clk 0:01:19]} 29... Rb4 {[%clk 0:01:58.3]} 30. Kc3 {[%clk 0:01:13.2]}
30... Re4 {[%clk 0:01:58.1]} 31. Kd3 {[%clk 0:01:13.1]} 31... Rb4 {[%clk
0:01:52.7]} 32. Kc3 {[%clk 0:01:12.5]} 32... Re4 {[%clk 0:01:51.2]} 33. Kd3
{[%clk 0:01:12.8]} 1/2-1/2